[Event "UKR-ch Women 2020"]
[Site "Kherson"]
[Date "2020.12.06"]
[Round "1.5"]
[White "Hryzlova, Sofiia"]
[Black "Babiy, Olga"]
[Result "1/2-1/2"]
[ECO "A20"]
[WhiteElo "2064"]
[BlackElo "2271"]
[Annotator "RC"]
[PlyCount "117"]
[EventDate "2020.12.06"]
[EventType "swiss"]
[EventCountry "UKR"]
[SourceTitle "playchess.com"]
[Source "ChessBase"]
[SourceQuality "1"]
[TimeControl "40/5400+30:1800+30"]

1. c4 {[%emt 0:00:00]} e5 {[%emt 0:00:00]} 2. g3 {[%emt 0:00:00]} c6 {[%emt 0:00:03]} 3. Nf3 {[%emt 0:00:44]} d6 {[%emt 0:00:40]} 4. Nc3 {[%emt 0:07:30]} Nf6 {[%emt 0:00:31]} 5. Bg2 {[%emt 0:03:58]} Be7 {[%emt 0:00:18]} 6. Qc2 {[%emt 0:12:34]} Bg4 {[%emt 0:04:56]} 7. h3 {[%emt 0:08:14]} Bxf3 {[%emt 0:05:43]} 8. Bxf3 {[%emt 0:04:41]} O-O {[%emt 0:00:19]} 9. d3 {[%emt 0:04:14]} Nfd7 {[%emt 0:04:08]} 10. O-O {[%emt 0:03:36]} a5 {[%emt 0:05:14]} 11. e4 {[%emt 0:03:30]} Nc5 {[%emt 0:03:36]} 12. Be3 {[%emt 0:02:35]} Ne6 {[%emt 0:03:51]} 13. Bg4 {[%emt 0:03:37]} Nd7 {[%emt 0:09:14]} 14. f4 {[%emt 0:05:12]} Bf6 {[%emt 0:14:43]} 15. a3 {[%emt 0:05:36]} exf4 {[%emt 0:16:47]} 16. gxf4 {[%emt 0:00:44]} Ndc5 {[%emt 0:00:29]} 17. Ne2 {[%emt 0:06:01]} Qb6 {[%emt 0:06:04]} 18. Rab1 {[%emt 0:10:21]} a4 {[%emt 0:02:31]} 19. Rf3 {[%emt 0:02:00]} Qb3 {[%emt 0:02:19]} 20. Qxb3 {[%emt 0:01:52]} Nxb3 {[%emt 0:00:03]} 21. Bxe6 fxe6 {[%emt 0:00:40]} 22. Rg3 {[%emt 0:02:58]} Rf7 {[%emt 0:04:45]} 23. d4 {[%emt 0:01:37]} b5 {[%emt 0:04:18]} 24. e5 {[%emt 0:03:07]} Be7 {[%emt 0:02:04]} 25. cxb5 {[%emt 0:00:45]} cxb5 {[%emt 0:00:02]} 26. Nc3 {[%emt 0:00:31]} dxe5 {[%emt 0:00:59]} 27. dxe5 {[%emt 0:00:32]} Bc5 {[%emt 0:01:47]} 28. Bxc5 {[%emt 0:02:27]} Nxc5 {[%emt 0:00:01]} 29. Nxb5 {[%emt 0:00:48]} Rb8 {[%emt 0:01:30]} 30. Nd6 {[%emt 0:00:47]} Rxf4 {[%emt 0:00:25]} 31. Rc1 {[%emt 0:01:47]} Nb3 {[%emt 0:02:10]} 32. Rc7 {[%emt 0:00:34]} g6 {[%emt 0:00:01]} 33. Rg4 {[%emt 0:01:14]} Rxg4+ {[%emt 0:02:09]} 34. hxg4 {[%emt 0:00:03]} Nd2 {[%emt 0:00:23]} 35. Kf2 {[%emt 0:00:22]} Rxb2 {[%emt 0:00:20]} 36. Ke3 {[%emt 0:00:44]} Nf1+ {[%emt 0:02:32]} 37. Kf4 {[%emt 0:00:58]} Rf2+ {[%emt 0:00:26]} 38. Kg5 {[%emt 0:00:08]} Nd2 {[%emt 0:00:25]} 39. Rc8+ Kg7 {[%emt 0:01:44]} 40. Rc7+ {[%emt 0:00:00]} Kg8 {[%emt 0:00:00]} 41. Ra7 {[%emt 0:13:03]} Rf1 {[%emt 0:03:53]} 42. Rxa4 {[%emt 0:02:43]} Kg7 {[%emt 0:03:14]} 43. Ra7+ {[%emt 0:00:52]} Kg8 {[%emt 0:00:06]} 44. a4 {[%emt 0:00:34]} Nf3+ {[%emt 0:00:12]} 45. Kf6 {[%emt 0:00:24]} Nh2+ {[%emt 0:05:21]} 46. Kxe6 {[%emt 0:02:32]} Nxg4 {[%emt 0:00:06]} 47. Ra8+ {[%emt 0:01:16]} Kg7 {[%emt 0:00:31]} 48. Ne8+ {[%emt 0:01:30]} Kh6 {[%emt 0:00:04]} 49. Nf6 {[%emt 0:00:29]} Ne3 {[%emt 0:03:17]} 50. Rh8 {[%emt 0:01:45]} Ra1 {[%emt 0:00:56]} 51. Rxh7+ {[%emt 0:01:13]} Kg5 {[%emt 0:00:02]} 52. Ne4+ {[%emt 0:01:45]} Kf4 {[%emt 0:03:35]} 53. Rh4+ {[%emt 0:01:01]} Kf3 {[%emt 0:00:29]} 54. Ng5+ {[%emt 0:00:20]} Kg3 {[%emt 0:00:51]} 55. Re4 {[%emt 0:00:49]} Ng4 {[%emt 0:03:14]} 56. Kf7 {[%emt 0:01:02]} Nxe5+ {[%emt 0:00:36]} 57. Kf6 {[%emt 0:00:36]} Nd7+ {[%emt 0:02:02]} 58. Kxg6 {[%emt 0:01:24]} Nc5 {[%emt 0:00:45]} 59. Re3+ {[%emt 0:02:35]} 1/2-1/2

[Event "UKR-ch Women 2020"]
[Site "Kherson"]
[Date "2020.12.07"]
[Round "2.1"]
[White "Osmak, Iulija"]
[Black "Martynkova, Olena"]
[Result "1-0"]
[ECO "A57"]
[WhiteElo "2438"]
[BlackElo "2222"]
[Annotator "RC"]
[PlyCount "115"]
[EventDate "2020.12.06"]
[EventType "swiss"]
[EventCountry "UKR"]
[SourceTitle "playchess.com"]
[Source "ChessBase"]
[SourceQuality "1"]
[TimeControl "40/5400+30:1800+30"]

1. d4 {[%emt 0:00:00]} Nf6 {[%emt 0:00:00]} 2. c4 {[%emt 0:00:00]} c5 {[%emt 0:01:11]} 3. d5 {[%emt 0:00:00]} b5 {[%emt 0:00:40]} 4. cxb5 {[%emt 0:00:19]} a6 {[%emt 0:01:07]} 5. e3 {[%emt 0:00:55]} g6 {[%emt 0:07:16]} 6. Nc3 {[%emt 0:01:09]} d6 {[%emt 0:02:47]} 7. Nf3 {[%emt 0:04:24]} Bg7 {[%emt 0:00:32]} 8. e4 {[%emt 0:07:29]} O-O {[%emt 0:01:57]} 9. a4 {[%emt 0:01:21]} axb5 {[%emt 0:14:07]} 10. Bxb5 {[%emt 0:00:24]} Ba6 {[%emt 0:00:35]} 11. Bg5 {[%emt 0:04:55]} h6 {[%emt 0:07:52]} 12. Bf4 {[%emt 0:03:41]} Ne8 {[%emt 0:24:56]} 13. O-O {[%emt 0:01:38]} Nc7 {[%emt 0:03:34]} 14. Qe2 {[%emt 0:14:38]} Nd7 {[%emt 0:02:41]} 15. h3 {[%emt 0:11:50]} Qb8 {[%emt 0:06:59]} 16. Nd2 {[%emt 0:08:37]} Qb7 {[%emt 0:10:03]} 17. Ra3 {[%emt 0:13:06]} Bxb5 {[%emt 0:05:54]} 18. Nxb5 {[%emt 0:00:08]} Nxb5 {[%emt 0:00:31]} 19. axb5 {[%emt 0:01:57]} Rfb8 {[%emt 0:03:41]} 20. Rb1 {[%emt 0:03:40]} Nb6 {[%emt 0:01:34]} 21. Qe3 {[%emt 0:08:23]} Kh7 {[%emt 0:00:19]} 22. Qd3 {[%emt 0:05:22]} Ra4 {[%emt 0:01:02]} 23. Qc2 {[%emt 0:02:27]} Rb4 {[%emt 0:00:53]} 24. Rb3 {[%emt 0:01:03]} Nd7 {[%emt 0:01:05]} 25. Rxb4 cxb4 {[%emt 0:00:02]} 26. Ra1 {[%emt 0:04:32]} Qxb5 {[%emt 0:00:39]} 27. Ra7 {[%emt 0:00:11]} Bf6 {[%emt 0:00:57]} 28. Qc6 {[%emt 0:00:56]} Nc5 {[%emt 0:00:34]} 29. Qxb5 {[%emt 0:00:50]} Rxb5 {[%emt 0:00:03]} 30. b3 {[%emt 0:00:32]} Rb7 {[%emt 0:00:46]} 31. Rxb7 {[%emt 0:00:20]} Nxb7 {[%emt 0:00:04]} 32. Be3 {[%emt 0:00:31]} Kg7 {[%emt 0:01:04]} 33. Nc4 {[%emt 0:00:18]} Bc3 {[%emt 0:00:27]} 34. f4 {[%emt 0:00:48]} f6 {[%emt 0:00:33]} 35. Kf2 {[%emt 0:00:29]} g5 {[%emt 0:00:31]} 36. f5 {[%emt 0:00:28]} h5 {[%emt 0:00:29]} 37. Bb6 {[%emt 0:00:24]} Kf7 {[%emt 0:00:26]} 38. Ke3 {[%emt 0:00:32]} Ke8 {[%emt 0:00:34]} 39. Na5 {[%emt 0:00:40]} Nc5 {[%emt 0:00:33]} 40. Bxc5 {[%emt 0:00:00]} dxc5 {[%emt 0:00:00]} 41. Kd3 {[%emt 0:03:06]} Kd7 {[%emt 0:02:10]} 42. Nb7 {[%emt 0:02:59]} Kc7 {[%emt 0:04:10]} 43. Nxc5 {[%emt 0:02:45]} Kd6 {[%emt 0:00:07]} 44. Na4 {[%emt 0:03:55]} Be1 {[%emt 0:07:00]} 45. Nb6 {[%emt 0:05:06]} Bf2 {[%emt 0:06:57]} 46. Nc4+ {[%emt 0:00:32]} Kc5 {[%emt 0:00:17]} 47. Na5 {[%emt 0:02:22]} Bg3 {[%emt 0:00:31]} 48. Nc6 {[%emt 0:02:14]} Bd6 {[%emt 0:00:17]} 49. Na7 {[%emt 0:02:45]} Kb6 {[%emt 0:09:59]} 50. Nc8+ {[%emt 0:02:37]} Kc5 {[%emt 0:00:45]} 51. Nxd6 {[%emt 0:03:24]} exd6 {[%emt 0:00:06]} 52. g3 {[%emt 0:00:12]} h4 {[%emt 0:01:05]} 53. g4 {[%emt 0:00:04]} Kb5 {[%emt 0:01:52]} 54. Kd4 {[%emt 0:00:04]} Kb6 {[%emt 0:00:49]} 55. Kc4 {[%emt 0:00:03]} Ka5 {[%emt 0:00:10]} 56. e5 {[%emt 0:00:16]} dxe5 {[%emt 0:00:06]} 57. Kc5 {[%emt 0:00:30]} Ka6 {[%emt 0:00:18]} 58. Kc6 {[%emt 0:00:19]} 1-0

[Event "UKR-ch Women 2020"]
[Site "Kherson"]
[Date "2020.12.07"]
[Round "2.3"]
[White "Grigorchuk, Katerina"]
[Black "Berdnyk, Mariia"]
[Result "0-1"]
[ECO "C78"]
[WhiteElo "1767"]
[BlackElo "2324"]
[Annotator "RC"]
[PlyCount "154"]
[EventDate "2020.12.06"]
[EventType "swiss"]
[EventCountry "UKR"]
[SourceTitle "playchess.com"]
[Source "ChessBase"]
[SourceQuality "1"]
[TimeControl "40/5400+30:1800+30"]

1. e4 {[%emt 0:01:01]} e5 {[%emt 0:00:00]} 2. Nf3 {[%emt 0:00:07]} Nc6 {[%emt 0:00:00]} 3. Bb5 {[%emt 0:00:32]} a6 {[%emt 0:00:00]} 4. Ba4 {[%emt 0:00:08]} Nf6 {[%emt 0:00:00]} 5. O-O {[%emt 0:00:25]} b5 {[%emt 0:00:02]} 6. Bb3 {[%emt 0:00:08]} Bc5 {[%emt 0:00:04]} 7. d3 {[%emt 0:00:21]} d6 {[%emt 0:00:05]} 8. c3 {[%emt 0:01:15]} h6 {[%emt 0:00:04]} 9. h3 {[%emt 0:02:32]} O-O {[%emt 0:00:04]} 10. Re1 {[%emt 0:00:49]} Be6 {[%emt 0:00:03]} 11. Bc2 {[%emt 0:00:11]} d5 {[%emt 0:00:15]} 12. exd5 {[%emt 0:01:01]} Qxd5 {[%emt 0:00:08]} 13. Qe2 {[%emt 0:08:40]} Rfe8 {[%emt 0:00:04]} 14. Nbd2 {[%emt 0:02:19]} Rad8 {[%emt 0:00:02]} 15. Ne4 {[%emt 0:06:42]} Nxe4 {[%emt 0:05:15]} 16. dxe4 {[%emt 0:02:07]} Qc4 {[%emt 0:04:32]} 17. Qxc4 {[%emt 0:07:15]} Bxc4 {[%emt 0:00:10]} 18. Be3 {[%emt 0:13:54]} Bxe3 {[%emt 0:11:39]} 19. Rxe3 {[%emt 0:00:39]} f6 {[%emt 0:00:49]} 20. a4 {[%emt 0:04:21]} Rd6 {[%emt 0:21:15]} 21. axb5 {[%emt 0:02:54]} axb5 {[%emt 0:00:06]} 22. b3 {[%emt 0:03:20]} Bf7 {[%emt 0:01:01]} 23. Bd3 {[%emt 0:07:19]} Rb8 {[%emt 0:06:51]} 24. b4 {[%emt 0:02:14]} Ne7 {[%emt 0:06:11]} 25. Ra7 {[%emt 0:05:09]} Rc6 {[%emt 0:00:14]} 26. Be2 {[%emt 0:00:43]} Nc8 {[%emt 0:01:47]} 27. Ra5 {[%emt 0:01:31]} Nd6 {[%emt 0:00:22]} 28. Nd2 {[%emt 0:01:30]} Rcb6 {[%emt 0:03:35]} 29. Ra7 {[%emt 0:01:52]} R6b7 {[%emt 0:07:53]} 30. Ra6 {[%emt 0:01:28]} Be6 {[%emt 0:02:59]} 31. g3 {[%emt 0:07:08]} g5 {[%emt 0:07:28]} 32. f4 {[%emt 0:04:22]} gxf4 {[%emt 0:01:56]} 33. gxf4 {[%emt 0:01:16]} exf4 {[%emt 0:01:07]} 34. Rf3 {[%emt 0:00:08]} Kg7 {[%emt 0:00:45]} 35. Kh2 {[%emt 0:01:23]} Rb6 {[%emt 0:00:34]} 36. Ra1 {[%emt 0:01:07]} Rc6 {[%emt 0:05:26]} 37. Rg1+ {[%emt 0:03:42]} Kf7 {[%emt 0:00:19]} 38. Rxf4 {[%emt 0:01:41]} Rxc3 {[%emt 0:00:39]} 39. Bh5+ {[%emt 0:02:32]} Ke7 {[%emt 0:00:08]} 40. Nf3 {[%emt 0:00:00]} Rc2+ {[%emt 0:00:00]} 41. Kh1 {[%emt 0:04:54]} Rg8 {[%emt 0:04:34]} 42. Rxg8 {[%emt 0:01:02]} Bxg8 {[%emt 0:00:01]} 43. e5 {[%emt 0:02:04]} fxe5 {[%emt 0:00:46]} 44. Nxe5 {[%emt 0:00:14]} Bd5+ {[%emt 0:01:21]} 45. Kg1 {[%emt 0:00:31]} Ne4 {[%emt 0:12:52]} 46. Ng6+ {[%emt 0:08:30]} Kd6 {[%emt 0:01:27]} 47. Bf3 {[%emt 0:01:31]} Rc4 {[%emt 0:00:51]} 48. Rf8 {[%emt 0:03:16]} Rxb4 {[%emt 0:04:09]} 49. Rd8+ {[%emt 0:01:31]} Kc5 {[%emt 0:00:04]} 50. Nf4 {[%emt 0:00:48]} Rb1+ {[%emt 0:00:07]} 51. Kg2 {[%emt 0:00:14]} c6 {[%emt 0:00:07]} 52. Nxd5 {[%emt 0:06:26]} Rb2+ {[%emt 0:00:20]} 53. Kf1 {[%emt 0:01:30]} Rf2+ {[%emt 0:01:42]} 54. Kg1 {[%emt 0:01:44]} Rxf3 {[%emt 0:00:05]} 55. Ne7 {[%emt 0:00:31]} b4 {[%emt 0:01:16]} 56. Nxc6 {[%emt 0:03:07]} Kxc6 {[%emt 0:01:54]} 57. Rd4 {[%emt 0:00:06]} Ng5 {[%emt 0:00:28]} 58. Rxb4 {[%emt 0:01:10]} Rxh3 {[%emt 0:00:47]} 59. Kg2 {[%emt 0:00:59]} Kd6 {[%emt 0:02:50]} 60. Rb6+ {[%emt 0:03:10]} Ke5 {[%emt 0:00:06]} 61. Rb5+ {[%emt 0:00:32]} Kf4 {[%emt 0:00:05]} 62. Rb4+ {[%emt 0:00:37]} Kf5 {[%emt 0:00:04]} 63. Rb5+ {[%emt 0:00:10]} Kg4 {[%emt 0:00:04]} 64. Rb4+ {[%emt 0:00:40]} Kh5 {[%emt 0:00:02]} 65. Rb5 {[%emt 0:00:23]} Re3 {[%emt 0:00:19]} 66. Kf2 {[%emt 0:00:50]} Rf3+ {[%emt 0:00:20]} 67. Kg2 {[%emt 0:00:17]} Kg4 {[%emt 0:00:08]} 68. Rb4+ {[%emt 0:00:50]} Rf4 {[%emt 0:00:05]} 69. Rb3 {[%emt 0:00:31]} Ne4 {[%emt 0:00:09]} 70. Rb6 {[%emt 0:00:33]} h5 {[%emt 0:00:05]} 71. Rg6+ {[%emt 0:00:16]} Ng5 {[%emt 0:00:04]} 72. Rb6 {[%emt 0:00:31]} h4 {[%emt 0:00:02]} 73. Rg6 {[%emt 0:00:36]} Ra4 {[%emt 0:00:38]} 74. Rg8 {[%emt 0:00:20]} Ra2+ {[%emt 0:00:25]} 75. Kg1 {[%emt 0:00:33]} Kf4 {[%emt 0:00:20]} 76. Rh8 {[%emt 0:00:38]} Kg3 {[%emt 0:00:07]} 77. Kf1 {[%emt 0:00:36]} h3 {[%emt 0:00:11]} 0-1

[Event "UKR-ch Women 2020"]
[Site "Kherson"]
[Date "2020.12.07"]
[Round "2.5"]
[White "Babiy, Olga"]
[Black "Petrova, Irina"]
[Result "1-0"]
[ECO "C41"]
[WhiteElo "2271"]
[BlackElo "2077"]
[Annotator "RC"]
[PlyCount "129"]
[EventDate "2020.12.06"]
[EventType "swiss"]
[EventCountry "UKR"]
[SourceTitle "playchess.com"]
[Source "ChessBase"]
[SourceQuality "1"]
[TimeControl "40/5400+30:1800+30"]

1. e4 {[%emt 0:00:00]} d6 {[%emt 0:00:00]} 2. d4 {[%emt 0:00:00]} Nf6 {[%emt 0:00:00]} 3. Nc3 {[%emt 0:00:00]} e5 {[%emt 0:00:00]} 4. Nf3 {[%emt 0:00:00]} Nbd7 {[%emt 0:00:00]} 5. Bc4 {[%emt 0:00:19]} Be7 {[%emt 0:00:00]} 6. a4 {[%emt 0:00:24]} O-O {[%emt 0:00:09]} 7. O-O {[%emt 0:00:07]} c6 {[%emt 0:00:13]} 8. Re1 {[%emt 0:00:18]} h6 {[%emt 0:00:11]} 9. h3 {[%emt 0:00:21]} Re8 {[%emt 0:00:09]} 10. a5 {[%emt 0:02:21]} Bf8 {[%emt 0:00:10]} 11. dxe5 {[%emt 0:00:57]} dxe5 {[%emt 0:00:40]} 12. Nh4 {[%emt 0:00:32]} Nc5 {[%emt 0:04:49]} 13. Qxd8 {[%emt 0:02:01]} Rxd8 {[%emt 0:00:04]} 14. Ng6 {[%emt 0:00:10]} Bd6 {[%emt 0:14:22]} 15. f4 {[%emt 0:02:20]} Be6 {[%emt 0:11:51]} 16. Nxe5 {[%emt 0:03:58]} Bxe5 {[%emt 0:00:29]} 17. fxe5 {[%emt 0:00:07]} Nfd7 {[%emt 0:00:11]} 18. Be2 {[%emt 0:06:07]} Nxe5 {[%emt 0:00:47]} 19. Be3 {[%emt 0:00:28]} Ncd7 {[%emt 0:04:52]} 20. b3 {[%emt 0:00:59]} f6 {[%emt 0:07:13]} 21. Red1 {[%emt 0:05:37]} Kf7 {[%emt 0:02:14]} 22. Ra4 {[%emt 0:01:38]} b5 {[%emt 0:08:37]} 23. Rad4 {[%emt 0:07:59]} Rh8 {[%emt 0:02:13]} 24. R4d2 {[%emt 0:02:16]} h5 {[%emt 0:02:51]} 25. Kf2 {[%emt 0:07:58]} g5 {[%emt 0:03:28]} 26. Bf1 {[%emt 0:00:59]} h4 {[%emt 0:04:05]} 27. Ne2 {[%emt 0:01:27]} a6 {[%emt 0:07:04]} 28. Nc1 {[%emt 0:09:55]} Rhg8 {[%emt 0:06:48]} 29. Be2 {[%emt 0:07:32]} Ke7 {[%emt 0:02:40]} 30. Nd3 {[%emt 0:04:00]} Nxd3+ {[%emt 0:05:33]} 31. Rxd3 {[%emt 0:00:13]} Rac8 {[%emt 0:01:52]} 32. Rd6 {[%emt 0:01:39]} Ne5 {[%emt 0:01:35]} 33. Bc5 {[%emt 0:02:27]} Kf7 {[%emt 0:00:07]} 34. Bh5+ {[%emt 0:00:19]} Ng6 {[%emt 0:00:32]} 35. Ke3 {[%emt 0:07:25]} Rc7 {[%emt 0:03:42]} 36. R1d2 {[%emt 0:01:22]} Re8 {[%emt 0:00:55]} 37. Rf2 {[%emt 0:06:12]} Kg7 {[%emt 0:03:01]} 38. Bd4 {[%emt 0:02:36]} Rf7 {[%emt 0:02:58]} 39. Kd2 {[%emt 0:02:11]} c5 {[%emt 0:02:12]} 40. Bxc5 {[%emt 0:00:00]} Rd7 {[%emt 0:00:00]} 41. Rxd7+ {[%emt 0:07:43]} Bxd7 {[%emt 0:01:58]} 42. Bd4 {[%emt 0:00:07]} Re6 {[%emt 0:02:36]} 43. c3 {[%emt 0:02:44]} Ne5 {[%emt 0:07:19]} 44. Ke3 {[%emt 0:03:06]} Bc6 {[%emt 0:01:30]} 45. Rf5 {[%emt 0:08:00]} Nd7 {[%emt 0:06:36]} 46. Bf3 {[%emt 0:06:16]} Kg6 {[%emt 0:00:08]} 47. Kd3 {[%emt 0:05:22]} Rd6 {[%emt 0:02:48]} 48. Rd5 {[%emt 0:04:56]} Bxd5 {[%emt 0:01:00]} 49. exd5 {[%emt 0:00:01]} f5 {[%emt 0:00:47]} 50. c4 {[%emt 0:00:22]} Nf6 {[%emt 0:00:49]} 51. Bxf6 {[%emt 0:03:18]} Kxf6 {[%emt 0:00:14]} 52. Kd4 {[%emt 0:00:03]} bxc4 {[%emt 0:01:00]} 53. bxc4 {[%emt 0:00:02]} Rd8 {[%emt 0:01:33]} 54. c5 {[%emt 0:00:06]} Rg8 {[%emt 0:00:27]} 55. d6 {[%emt 0:02:50]} g4 {[%emt 0:00:06]} 56. Bb7 {[%emt 0:01:21]} gxh3 {[%emt 0:01:32]} 57. gxh3 {[%emt 0:00:01]} f4 {[%emt 0:01:23]} 58. Bxa6 {[%emt 0:02:13]} Ra8 {[%emt 0:02:11]} 59. Be2 {[%emt 0:01:23]} Rxa5 {[%emt 0:00:16]} 60. c6 {[%emt 0:00:02]} Ke6 {[%emt 0:00:57]} 61. c7 {[%emt 0:00:54]} Ra8 {[%emt 0:00:25]} 62. Kc5 {[%emt 0:01:24]} Ra5+ {[%emt 0:00:20]} 63. Kc6 {[%emt 0:01:22]} Ra8 {[%emt 0:00:14]} 64. Bg4+ {[%emt 0:00:15]} Ke5 {[%emt 0:00:25]} 65. d7 {[%emt 0:00:15]} 1-0

[Event "UKR-ch Women 2020"]
[Site "Kherson"]
[Date "2020.12.07"]
[Round "2.6"]
[White "Zinkevich, Julia"]
[Black "Hryzlova, Sofiia"]
[Result "1/2-1/2"]
[ECO "A46"]
[WhiteElo "2178"]
[BlackElo "2064"]
[Annotator "RC"]
[PlyCount "88"]
[EventDate "2020.12.06"]
[EventType "swiss"]
[EventCountry "UKR"]
[SourceTitle "playchess.com"]
[Source "ChessBase"]
[SourceQuality "1"]
[TimeControl "40/5400+30:1800+30"]

1. d4 {[%emt 0:05:22]} Nf6 {[%emt 0:00:00]} 2. Nf3 {[%emt 0:00:55]} e6 {[%emt 0:00:00]} 3. c4 {[%emt 0:00:39]} c5 {[%emt 0:00:25]} 4. d5 {[%emt 0:03:33]} d6 {[%emt 0:00:41]} 5. Nc3 {[%emt 0:01:14]} g6 {[%emt 0:00:32]} 6. Bf4 {[%emt 0:03:58]} e5 {[%emt 0:02:47]} 7. Bd2 {[%emt 0:12:05]} e4 {[%emt 0:12:42]} 8. Ng1 {[%emt 0:19:06]} Bg7 {[%emt 0:02:54]} 9. Qc1 {[%emt 0:15:54]} h6 {[%emt 0:02:59]} 10. g3 {[%emt 0:03:01]} a6 {[%emt 0:03:51]} 11. Bg2 {[%emt 0:01:07]} Bf5 {[%emt 0:01:41]} 12. a4 {[%emt 0:00:49]} Nbd7 {[%emt 0:01:50]} 13. f3 {[%emt 0:10:05]} Qe7 {[%emt 0:19:17]} 14. f4 {[%emt 0:05:17]} e3 {[%emt 0:09:11]} 15. Bxe3 {[%emt 0:00:09]} Ng4 {[%emt 0:00:07]} 16. Bd2 {[%emt 0:04:21]} Bd4 {[%emt 0:03:04]} 17. Nd1 {[%emt 0:02:36]} O-O {[%emt 0:04:27]} 18. h3 {[%emt 0:01:30]} Ngf6 {[%emt 0:01:00]} 19. e3 {[%emt 0:03:37]} Rfe8 {[%emt 0:02:54]} 20. Ne2 {[%emt 0:01:36]} Bd3 {[%emt 0:00:34]} 21. Ra3 {[%emt 0:00:31]} Bxe2 {[%emt 0:04:56]} 22. Kxe2 {[%emt 0:00:02]} Ne4 {[%emt 0:02:12]} 23. Bxe4 {[%emt 0:00:02]} Qxe4 {[%emt 0:00:08]} 24. Nf2 {[%emt 0:01:27]} Qe7 {[%emt 0:01:54]} 25. Kf3 {[%emt 0:00:19]} Bg7 {[%emt 0:01:42]} 26. Re1 {[%emt 0:01:17]} b5 {[%emt 0:01:37]} 27. axb5 {[%emt 0:01:47]} axb5 {[%emt 0:00:05]} 28. Rxa8 {[%emt 0:00:43]} Rxa8 {[%emt 0:00:05]} 29. cxb5 {[%emt 0:00:29]} f5 {[%emt 0:02:27]} 30. Bc3 {[%emt 0:00:42]} Qf7 {[%emt 0:01:42]} 31. Qd2 {[%emt 0:00:31]} Ra2 {[%emt 0:04:28]} 32. Qd3 {[%emt 0:00:25]} g5 {[%emt 0:01:39]} 33. g4 {[%emt 0:00:34]} Bxc3 34. bxc3 {[%emt 0:00:35]} Ne5+ {[%emt 0:01:53]} 35. fxe5 {[%emt 0:00:20]} fxg4+ {[%emt 0:00:08]} 36. Kxg4 {[%emt 0:00:31]} Rxf2 {[%emt 0:00:14]} 37. Qe4 {[%emt 0:00:14]} dxe5 {[%emt 0:00:38]} 38. Rg1 {[%emt 0:00:55]} Kf8 {[%emt 0:04:11]} 39. d6 {[%emt 0:00:31]} h5+ {[%emt 0:05:24]} 40. Kg3 {[%emt 0:00:00]} h4+ {[%emt 0:00:00]} 41. Kg4 {[%emt 0:00:30]} Rf6 {[%emt 0:14:53]} 42. Qxe5 {[%emt 0:16:14]} Qd7+ {[%emt 0:01:10]} 43. Kh5 {[%emt 0:00:56]} Qf7+ {[%emt 0:01:09]} 44. Kg4 {[%emt 0:00:18]} Qd7+ {[%emt 0:00:06]} 1/2-1/2

[Event "UKR-ch Women 2020"]
[Site "Kherson"]
[Date "2020.12.07"]
[Round "2.7"]
[White "Hrebenshchykova, Yelyzaveta"]
[Black "Mashchenko, Tamila"]
[Result "1-0"]
[ECO "B75"]
[WhiteElo "2083"]
[BlackElo "1768"]
[Annotator "RC"]
[PlyCount "81"]
[EventDate "2020.12.06"]
[EventType "swiss"]
[EventCountry "UKR"]
[SourceTitle "playchess.com"]
[Source "ChessBase"]
[SourceQuality "1"]
[TimeControl "40/5400+30:1800+30"]

1. e4 {[%emt 0:00:00]} c5 {[%emt 0:00:00]} 2. Nf3 {[%emt 0:00:00]} d6 {[%emt 0:00:00]} 3. d4 {[%emt 0:00:00]} cxd4 {[%emt 0:00:00]} 4. Nxd4 {[%emt 0:00:00]} Nf6 {[%emt 0:00:14]} 5. Nc3 {[%emt 0:00:16]} g6 {[%emt 0:00:11]} 6. Be3 {[%emt 0:00:20]} Bg7 {[%emt 0:00:24]} 7. f3 {[%emt 0:00:57]} Nc6 {[%emt 0:00:43]} 8. Qd2 {[%emt 0:05:38]} O-O {[%emt 0:01:43]} 9. g4 {[%emt 0:01:01]} Bd7 {[%emt 0:18:50]} 10. O-O-O {[%emt 0:02:51]} Qa5 {[%emt 0:13:13]} 11. Nb3 {[%emt 0:12:07]} Qc7 {[%emt 0:11:53]} 12. h4 {[%emt 0:07:14]} Rfc8 {[%emt 0:06:55]} 13. h5 {[%emt 0:11:18]} Ne5 {[%emt 0:04:42]} 14. Be2 {[%emt 0:02:03]} b5 {[%emt 0:04:01]} 15. hxg6 {[%emt 0:23:49]} fxg6 {[%emt 0:01:15]} 16. Bh6 {[%emt 0:05:06]} b4 {[%emt 0:05:09]} 17. Nd5 {[%emt 0:01:55]} Nxd5 {[%emt 0:00:25]} 18. exd5 {[%emt 0:02:55]} Bh8 {[%emt 0:02:38]} 19. Nd4 {[%emt 0:07:40]} a5 {[%emt 0:05:02]} 20. Kb1 {[%emt 0:06:13]} a4 {[%emt 0:06:43]} 21. Be3 {[%emt 0:04:31]} Qb7 {[%emt 0:03:08]} 22. f4 {[%emt 0:00:51]} Nxg4 {[%emt 0:03:29]} 23. Bxg4 {[%emt 0:00:06]} Bxg4 {[%emt 0:00:07]} 24. Rdg1 {[%emt 0:02:19]} Qxd5 {[%emt 0:02:13]} 25. Qh2 {[%emt 0:01:45]} Bxd4 {[%emt 0:02:42]} 26. Qxh7+ {[%emt 0:00:05]} Kf8 {[%emt 0:00:33]} 27. Qh6+ {[%emt 0:01:32]} Bg7 {[%emt 0:03:11]} 28. Qxg6 {[%emt 0:00:52]} b3 {[%emt 0:00:21]} 29. Qxg4 {[%emt 0:00:26]} bxc2+ {[%emt 0:01:25]} 30. Kc1 {[%emt 0:00:24]} Qf7 {[%emt 0:02:32]} 31. f5 {[%emt 0:00:20]} Rab8 {[%emt 0:01:13]} 32. Bd4 {[%emt 0:00:09]} Bxd4 {[%emt 0:00:26]} 33. Qxd4 {[%emt 0:00:07]} Ke8 {[%emt 0:00:35]} 34. Rh8+ {[%emt 0:00:59]} Kd7 {[%emt 0:00:05]} 35. Qxa4+ {[%emt 0:00:05]} Kc7 {[%emt 0:00:16]} 36. Qa5+ {[%emt 0:01:02]} Kb7 {[%emt 0:00:36]} 37. Rh3 {[%emt 0:00:41]} Rc6 {[%emt 0:01:01]} 38. Rg4 {[%emt 0:00:45]} Qf8 {[%emt 0:00:34]} 39. Rb4+ {[%emt 0:00:31]} Kc8 {[%emt 0:00:09]} 40. Rxb8+ {[%emt 0:00:00]} Kxb8 {[%emt 0:00:00]} 41. Rb3+ {[%emt 0:00:23]} 1-0